Workbook

Sheet 팁
A1: 서식 파일 팁
A2: 경비 추세 요약 시트와 월별 상세 경비 내역 사이를 이동하는 간단한 방법이 있나요?
A3: 특정 달의 경비로 빠르게 이동하려면 B2에 있는 1월 탐색 링크와 같이 차트 위에 있는 해당 탐색 링크를 클릭합니다. 그런 다음 D1에 있는 요약 탐색 링크를 클릭하여 경비 추세 워크시트로 돌아갑니다.
A4: 요약 워크시트에서 팁 워크시트로 돌아오려면 N2를 선택합니다. 월별 워크시트에서는 E1을 클릭합니다.
A5: 경비 요약에 새 경비 유형을 추가하거나 새 월별 경비를 추가하려면 어떻게 해야 하나요?
A6: 차트 아래에 있는 경비 요약과 월별 상세 경비 내역은 모두 Excel 표입니다. Excel 표에 새 행을 추가하려면 다음을 수행합니다.
A7: =ROW(A1)&". 테이블에 요약 행이 없는 경우 표 아래에 입력하고 Enter 키나 Tab 키를 누르면 자동으로 확장됩니다." -> 1. 테이블에 요약 행이 없는 경우 표 아래에 입력하고 Enter 키나 Tab 키를 누르면 자동으로 확장됩니다.
A8: =ROW(A2)&". 이전 경비의 총합 등 요약 행 위에 있는 마지막 셀에 셀 포인터를 두고 Tab 키를 누릅니다." -> 2. 이전 경비의 총합 등 요약 행 위에 있는 마지막 셀에 셀 포인터를 두고 Tab 키를 누릅니다.
A9: =ROW(A3)&". 표를 마우스 오른쪽 단추로 클릭하고 팝업 메뉴에서 삽입을 가리킨 다음 위쪽에 표 행 삽입 또는 아래쪽에 표 행 삽입을 클릭합니다." -> 3. 표를 마우스 오른쪽 단추로 클릭하고 팝업 메뉴에서 삽입을 가리킨 다음 위쪽에 표 행 삽입 또는 아래쪽에 표 행 삽입을 클릭합니다.
A10: =ROW(A4)&". 표 오른쪽 아래 모서리에서 표 크기 조정 핸들에 마우스를 놓고 끌어서 사용 가능한 표 행의 개수를 늘립니다." -> 4. 표 오른쪽 아래 모서리에서 표 크기 조정 핸들에 마우스를 놓고 끌어서 사용 가능한 표 행의 개수를 늘립니다.
A11: 요약 워크시트의 경비요약 표에 있는 경비 열에 경비를 입력합니다.
A12: 월별 워크시트에서 해당 경비에 상응하는 각 경비 유형에 대해 경비 금액을 입력합니다.
A13: 예를 들면 다음과 같습니다. "경비 1"이 1월~6월과 12월에 발생한다고 가정합니다.
A14: =ROW(A1)&". 요약 워크시트의 경비 아래 경비요약 표에 (경비 유형에 대한 제목으로) 경비 1이 입력됩니다." -> 1. 요약 워크시트의 경비 아래 경비요약 표에 (경비 유형에 대한 제목으로) 경비 1이 입력됩니다.
A15: =ROW(A2)&". 해당 경비가 발생하는 각 월에 대해 해당 월 워크시트에 경비 금액을 입력합니다." -> 2. 해당 경비가 발생하는 각 월에 대해 해당 월 워크시트에 경비 금액을 입력합니다.
A16: =ROW(A3)&". 경비요약 워크시트의 경비 유형으로 인해 각 월의 워크시트의 범주 열에 범주 목록이 생성됩니다." -> 3. 경비요약 워크시트의 경비 유형으로 인해 각 월의 워크시트의 범주 열에 범주 목록이 생성됩니다.
A17: =ROW(A4)&". 범주 열의 범주 목록을 사용하여 입력한 경비 금액에 대한 경비 유형을 선택합니다." -> 4. 범주 열의 범주 목록을 사용하여 입력한 경비 금액에 대한 경비 유형을 선택합니다.
A18: =ROW(A5)&". 특정 월에 새 경비를 추가하려면 요약 워크시트의 경비요약 표에 새 행을 추가한 다음 해당 월의 워크시트에 경비 정보를 입력합니다." -> 5. 특정 월에 새 경비를 추가하려면 요약 워크시트의 경비요약 표에 새 행을 추가한 다음 해당 월의 워크시트에 경비 정보를 입력합니다.

Sheet 요약
A1: 경비 추세
B2: 1월 | C2: 2월 | D2: 3월 | E2: 4월 | F2: 5월 | G2: 6월 | H2: 7월 | I2: 8월 | J2: 9월 | K2: 10월 | L2: 11월 | M2: 12월 | N2: 팁
A4: 경비 | B4: 1월 | C4: 2월 | D4: 3월 | E4: 4월 | F4: 5월 | G4: 6월 | H4: 7월 | I4: 8월 | J4: 9월 | K4: 10월 | L4: 11월 | M4: 12월 | N4: 합계 | O4: 추세
A5: 경비 1 | B5: =SUMIFS(_1월경비[금액],_1월경비[범주],경비요약[경비]) -> 33.00 | C5: =SUMIFS(_2월경비[금액],_2월경비[범주],경비요약[경비]) -> 375.00 | D5: =SUMIFS(_3월경비[금액],_3월경비[범주],경비요약[경비]) -> 33.00 | E5: =SUMIFS(_4월경비[금액],_4월경비[범주],경비요약[경비]) -> 45.00 | F5: =SUMIFS(_5월경비[금액],_5월경비[범주],경비요약[경비]) -> 375.00 | G5: =SUMIFS(_6월경비[금액],_6월경비[범주],경비요약[경비]) -> 201.00 | H5: =SUMIFS(_7월경비[금액],_7월경비[범주],경비요약[경비]) -> 0.00 | I5: =SUMIFS(_8월경비[금액],_8월경비[범주],경비요약[경비]) -> 0.00 | J5: =SUMIFS(_9월경비[금액],_9월경비[범주],경비요약[경비]) -> 0.00 | K5: =SUMIFS(_10월경비[금액],_10월경비[범주],경비요약[경비]) -> 0.00 | L5: =SUMIFS(_11월경비[금액],_11월경비[범주],경비요약[경비]) -> 0.00 | M5: =SUMIFS(_12월경비[금액],_12월경비[범주],경비요약[경비]) -> 201.00 | N5: =SUM(경비요약[[#This Row],[1월]:[12월]]) -> 1,263.00
A6: 경비 2 | B6: =SUMIFS(_1월경비[금액],_1월경비[범주],경비요약[경비]) -> 238.00 | C6: =SUMIFS(_2월경비[금액],_2월경비[범주],경비요약[경비]) -> 238.00 | D6: =SUMIFS(_3월경비[금액],_3월경비[범주],경비요약[경비]) -> 238.00 | E6: =SUMIFS(_4월경비[금액],_4월경비[범주],경비요약[경비]) -> 123.00 | F6: =SUMIFS(_5월경비[금액],_5월경비[범주],경비요약[경비]) -> 111.00 | G6: =SUMIFS(_6월경비[금액],_6월경비[범주],경비요약[경비]) -> 98.00 | H6: =SUMIFS(_7월경비[금액],_7월경비[범주],경비요약[경비]) -> 0.00 | I6: =SUMIFS(_8월경비[금액],_8월경비[범주],경비요약[경비]) -> 0.00 | J6: =SUMIFS(_9월경비[금액],_9월경비[범주],경비요약[경비]) -> 0.00 | K6: =SUMIFS(_10월경비[금액],_10월경비[범주],경비요약[경비]) -> 0.00 | L6: =SUMIFS(_11월경비[금액],_11월경비[범주],경비요약[경비]) -> 0.00 | M6: =SUMIFS(_12월경비[금액],_12월경비[범주],경비요약[경비]) -> 440.00 | N6: =SUM(경비요약[[#This Row],[1월]:[12월]]) -> 1,486.00
A7: 경비 3 | B7: =SUMIFS(_1월경비[금액],_1월경비[범주],경비요약[경비]) -> 110.00 | C7: =SUMIFS(_2월경비[금액],_2월경비[범주],경비요약[경비]) -> 110.00 | D7: =SUMIFS(_3월경비[금액],_3월경비[범주],경비요약[경비]) -> 110.00 | E7: =SUMIFS(_4월경비[금액],_4월경비[범주],경비요약[경비]) -> 125.00 | F7: =SUMIFS(_5월경비[금액],_5월경비[범주],경비요약[경비]) -> 333.00 | G7: =SUMIFS(_6월경비[금액],_6월경비[범주],경비요약[경비]) -> 122.00 | H7: =SUMIFS(_7월경비[금액],_7월경비[범주],경비요약[경비]) -> 0.00 | I7: =SUMIFS(_8월경비[금액],_8월경비[범주],경비요약[경비]) -> 0.00 | J7: =SUMIFS(_9월경비[금액],_9월경비[범주],경비요약[경비]) -> 0.00 | K7: =SUMIFS(_10월경비[금액],_10월경비[범주],경비요약[경비]) -> 0.00 | L7: =SUMIFS(_11월경비[금액],_11월경비[범주],경비요약[경비]) -> 0.00 | M7: =SUMIFS(_12월경비[금액],_12월경비[범주],경비요약[경비]) -> 122.00 | N7: =SUM(경비요약[[#This Row],[1월]:[12월]]) -> 1,032.00
A8: 경비 4 | B8: =SUMIFS(_1월경비[금액],_1월경비[범주],경비요약[경비]) -> 426.00 | C8: =SUMIFS(_2월경비[금액],_2월경비[범주],경비요약[경비]) -> 84.00 | D8: =SUMIFS(_3월경비[금액],_3월경비[범주],경비요약[경비]) -> 84.00 | E8: =SUMIFS(_4월경비[금액],_4월경비[범주],경비요약[경비]) -> 426.00 | F8: =SUMIFS(_5월경비[금액],_5월경비[범주],경비요약[경비]) -> 125.00 | G8: =SUMIFS(_6월경비[금액],_6월경비[범주],경비요약[경비]) -> 187.00 | H8: =SUMIFS(_7월경비[금액],_7월경비[범주],경비요약[경비]) -> 0.00 | I8: =SUMIFS(_8월경비[금액],_8월경비[범주],경비요약[경비]) -> 0.00 | J8: =SUMIFS(_9월경비[금액],_9월경비[범주],경비요약[경비]) -> 0.00 | K8: =SUMIFS(_10월경비[금액],_10월경비[범주],경비요약[경비]) -> 0.00 | L8: =SUMIFS(_11월경비[금액],_11월경비[범주],경비요약[경비]) -> 0.00 | M8: =SUMIFS(_12월경비[금액],_12월경비[범주],경비요약[경비]) -> 187.00 | N8: =SUM(경비요약[[#This Row],[1월]:[12월]]) -> 1,519.00
A9: 경비 5 | B9: =SUMIFS(_1월경비[금액],_1월경비[범주],경비요약[경비]) -> 54.00 | C9: =SUMIFS(_2월경비[금액],_2월경비[범주],경비요약[경비]) -> 54.00 | D9: =SUMIFS(_3월경비[금액],_3월경비[범주],경비요약[경비]) -> 109.00 | E9: =SUMIFS(_4월경비[금액],_4월경비[범주],경비요약[경비]) -> 98.00 | F9: =SUMIFS(_5월경비[금액],_5월경비[범주],경비요약[경비]) -> 33.00 | G9: =SUMIFS(_6월경비[금액],_6월경비[범주],경비요약[경비]) -> 441.00 | H9: =SUMIFS(_7월경비[금액],_7월경비[범주],경비요약[경비]) -> 0.00 | I9: =SUMIFS(_8월경비[금액],_8월경비[범주],경비요약[경비]) -> 0.00 | J9: =SUMIFS(_9월경비[금액],_9월경비[범주],경비요약[경비]) -> 0.00 | K9: =SUMIFS(_10월경비[금액],_10월경비[범주],경비요약[경비]) -> 0.00 | L9: =SUMIFS(_11월경비[금액],_11월경비[범주],경비요약[경비]) -> 0.00 | M9: =SUMIFS(_12월경비[금액],_12월경비[범주],경비요약[경비]) -> 99.00 | N9: =SUM(경비요약[[#This Row],[1월]:[12월]]) -> 888.00
A10: 합계 | B10: =SUBTOTAL(109,경비요약[1월]) -> 861.00 | C10: =SUBTOTAL(109,경비요약[2월]) -> 861.00 | D10: =SUBTOTAL(109,경비요약[3월]) -> 574.00 | E10: =SUBTOTAL(109,경비요약[4월]) -> 817.00 | F10: =SUBTOTAL(109,경비요약[5월]) -> 977.00 | G10: =SUBTOTAL(109,경비요약[6월]) -> 1,049.00 | H10: =SUBTOTAL(109,경비요약[7월]) -> 0.00 | I10: =SUBTOTAL(109,경비요약[8월]) -> 0.00 | J10: =SUBTOTAL(109,경비요약[9월]) -> 0.00 | K10: =SUBTOTAL(109,경비요약[10월]) -> 0.00 | L10: =SUBTOTAL(109,경비요약[11월]) -> 0.00 | M10: =SUBTOTAL(109,경비요약[12월]) -> 1,049.00 | N10: =SUBTOTAL(109,경비요약[합계]) -> 6,188.00

Sheet 1월
A1: 1월 경비 | D1: 합계 | E1: 팁
A2: 날짜 | B2: PO 번호 | C2: 금액 | D2: 범주 | E2: 설명
A3: =DATE(YEAR(TODAY()),1,4) -> 2017-01-04 | B3: A-12345 | C3: 33.00 | D3: 경비 1 | E3: 소모품
A4: =DATE(YEAR(TODAY()),1,5) -> 2017-01-05 | B4: A-12346 | C4: 238.00 | D4: 경비 2
C5: 342.00 | D5: 경비 4
C6: 110.00 | D6: 경비 3
C7: 84.00 | D7: 경비 4
C8: 54.00 | D8: 경비 5
A9: 합계 | C9: =SUBTOTAL(109,_1월경비[금액]) -> 861.00

Sheet 2월
A1: 2월 경비 | D1: 합계 | E1: 팁
A2: 날짜 | B2: PO 번호 | C2: 금액 | D2: 범주 | E2: 설명
A3: =DATE(YEAR(TODAY()),2,3) -> 2017-02-03 | B3: A-12345 | C3: 33.00 | D3: 경비 1 | E3: 소모품
A4: =DATE(YEAR(TODAY()),2,4) -> 2017-02-04 | B4: A-12346 | C4: 238.00 | D4: 경비 2
C5: 342.00 | D5: 경비 1
C6: 110.00 | D6: 경비 3
C7: 84.00 | D7: 경비 4
C8: 54.00 | D8: 경비 5
A9: 합계 | C9: =SUBTOTAL(109,_2월경비[금액]) -> 861.00

Sheet 3월
A1: 3월 경비 | D1: 합계 | E1: 팁
A2: 날짜 | B2: PO 번호 | C2: 금액 | D2: 범주 | E2: 설명
A3: =DATE(YEAR(TODAY()),3,5) -> 2017-03-05 | B3: A-12345 | C3: 33.00 | D3: 경비 1 | E3: 소모품
A4: =DATE(YEAR(TODAY()),3,6) -> 2017-03-06 | B4: A-12346 | C4: 238.00 | D4: 경비 2
C5: 55.00 | D5: 경비 5
C6: 110.00 | D6: 경비 3
C7: 84.00 | D7: 경비 4
C8: 54.00 | D8: 경비 5
A9: 합계 | C9: =SUBTOTAL(109,_3월경비[금액]) -> 574.00

Sheet 4월
A1: 4월 경비 | D1: 합계 | E1: 팁
A2: 날짜 | B2: PO 번호 | C2: 금액 | D2: 범주 | E2: 설명
A3: =DATE(YEAR(TODAY()),4,4) -> 2017-04-04 | B3: A-12345 | C3: 45.00 | D3: 경비 1 | E3: 소모품
A4: =DATE(YEAR(TODAY()),4,8) -> 2017-04-08 | B4: A-12346 | C4: 123.00 | D4: 경비 2
C5: 342.00 | D5: 경비 4
C6: 125.00 | D6: 경비 3
C7: 84.00 | D7: 경비 4
C8: 98.00 | D8: 경비 5
A9: 합계 | C9: =SUBTOTAL(109,_4월경비[금액]) -> 817.00

Sheet 5월
A1: 5월 경비 | D1: 합계 | E1: 팁
A2: 날짜 | B2: PO 번호 | C2: 금액 | D2: 범주 | E2: 설명
A3: =DATE(YEAR(TODAY()),5,3) -> 2017-05-03 | B3: A-12345 | C3: 33.00 | D3: 경비 1 | E3: 소모품
A4: =DATE(YEAR(TODAY()),5,8) -> 2017-05-08 | B4: A-12346 | C4: 111.00 | D4: 경비 2
C5: 342.00 | D5: 경비 1
C6: 333.00 | D6: 경비 3
C7: 125.00 | D7: 경비 4
C8: 33.00 | D8: 경비 5
A9: 합계 | C9: =SUBTOTAL(109,_5월경비[금액]) -> 977.00

Sheet 6월
A1: 6월 경비 | D1: 합계 | E1: 팁
A2: 날짜 | B2: PO 번호 | C2: 금액 | D2: 범주 | E2: 설명
A3: =DATE(YEAR(TODAY()),6,7) -> 2017-06-07 | B3: A-12345 | C3: 201.00 | D3: 경비 1 | E3: 소모품
A4: =DATE(YEAR(TODAY()),6,8) -> 2017-06-08 | B4: A-12346 | C4: 98.00 | D4: 경비 2
C5: 342.00 | D5: 경비 5
C6: 122.00 | D6: 경비 3
C7: 187.00 | D7: 경비 4
C8: 99.00 | D8: 경비 5
A9: 합계 | C9: =SUBTOTAL(109,_6월경비[금액]) -> 1,049.00

Sheet 7월
A1: 7월 경비 | D1: 합계 | E1: 팁
A2: 날짜 | B2: PO 번호 | C2: 금액 | D2: 범주 | E2: 설명
A3: =DATE(YEAR(TODAY()),7,9) -> 2017-07-09 | B3: A-12345 | D3: 경비 1 | E3: 소모품
A4: =DATE(YEAR(TODAY()),7,14) -> 2017-07-14 | B4: A-12346 | D4: 경비 2
D5: 경비 2
D6: 경비 3
D7: 경비 4
D8: 경비 5
A9: 합계 | C9: =SUBTOTAL(109,_7월경비[금액]) -> 0.00

Sheet 8월
A1: 8월 경비 | D1: 합계 | E1: 팁
A2: 날짜 | B2: PO 번호 | C2: 금액 | D2: 범주 | E2: 설명
A3: =DATE(YEAR(TODAY()),8,8) -> 2017-08-08 | B3: A-12345 | D3: 경비 1 | E3: 소모품
A4: =DATE(YEAR(TODAY()),8,9) -> 2017-08-09 | B4: A-12346 | D4: 경비 2
D5: 경비 2
D6: 경비 3
D7: 경비 4
D8: 경비 5
A9: 합계 | C9: =SUBTOTAL(109,_8월경비[금액]) -> 0.00

Sheet 9월
A1: 9월 경비 | D1: 합계 | E1: 팁
A2: 날짜 | B2: PO 번호 | C2: 금액 | D2: 범주 | E2: 설명
A3: =DATE(YEAR(TODAY()),9,9) -> 2017-09-09 | B3: A-12345 | D3: 경비 1 | E3: 소모품
A4: =DATE(YEAR(TODAY()),9,15) -> 2017-09-15 | B4: A-12346 | D4: 경비 2
D5: 경비 2
D6: 경비 3
D7: 경비 4
D8: 경비 5
A9: 합계 | C9: =SUBTOTAL(109,_9월경비[금액]) -> 0.00

Sheet 10월
A1: 10월 경비 | D1: 합계 | E1: 팁
A2: 날짜 | B2: PO 번호 | C2: 금액 | D2: 범주 | E2: 설명
A3: =DATE(YEAR(TODAY()),10,10) -> 2017-10-10 | B3: A-12345 | D3: 경비 1 | E3: 소모품
A4: =DATE(YEAR(TODAY()),10,21) -> 2017-10-21 | B4: A-12346 | D4: 경비 2
D5: 경비 2
D6: 경비 3
D7: 경비 4
D8: 경비 5
A9: 합계 | C9: =SUBTOTAL(109,_10월경비[금액]) -> 0.00

Sheet 11월
A1: 11월 경비 | D1: 합계 | E1: 팁
A2: 날짜 | B2: PO 번호 | C2: 금액 | D2: 범주 | E2: 설명
A3: =DATE(YEAR(TODAY()),11,14) -> 2017-11-14 | B3: A-12345 | D3: 경비 1 | E3: 소모품
A4: =DATE(YEAR(TODAY()),11,21) -> 2017-11-21 | B4: A-12346 | D4: 경비 2
D5: 경비 2
D6: 경비 3
D7: 경비 4
D8: 경비 5
A9: 합계 | C9: =SUBTOTAL(109,_11월경비[금액]) -> 0.00

Sheet 12월
A1: 12월 경비 | D1: 합계 | E1: 팁
A2: 날짜 | B2: PO 번호 | C2: 금액 | D2: 범주 | E2: 설명
A3: =DATE(YEAR(TODAY()),12,2) -> 2017-12-02 | B3: A-12345 | C3: 201.00 | D3: 경비 1 | E3: 소모품
A4: =DATE(YEAR(TODAY()),12,24) -> 2017-12-24 | B4: A-12346 | C4: 98.00 | D4: 경비 2
C5: 342.00 | D5: 경비 2
C6: 122.00 | D6: 경비 3
C7: 187.00 | D7: 경비 4
C8: 99.00 | D8: 경비 5
A9: 합계 | C9: =SUBTOTAL(109,_12월경비[금액]) -> 1,049.00
